[Event "*** Titled Tuesday Blitz"]
[Site "Chess.com"]
[Date "2021.04.27"]
[Round "8"]
[White "Vice64"]
[Black "Arystanner"]
[Result "0-1"]
[WhiteElo "2671"]
[BlackElo "2833"]
[TimeControl "180+1"]
[EndTime "11:26:54 PDT"]
[Termination "Arystanner won by resignation"]

1. e4 {[%clk 0:03:00.9]} 1... c5 {[%clk 0:02:58.5]} 2. Nf3 {[%clk 0:03:00.6]}
2... e6 {[%clk 0:02:59.1]} 3. d4 {[%clk 0:03:00.6]} 3... cxd4 {[%clk 0:03:00]}
4. Nxd4 {[%clk 0:03:01.2]} 4... Nf6 {[%clk 0:03:00.6]} 5. Nc3 {[%clk 0:03:00.9]}
5... Nc6 {[%clk 0:03:00.8]} 6. a3 {[%clk 0:03:00.7]} 6... Be7 {[%clk 0:02:58.7]}
7. Be3 {[%clk 0:02:57.3]} 7... O-O {[%clk 0:02:56]} 8. g4 {[%clk 0:02:55.5]}
8... d5 {[%clk 0:02:55.7]} 9. g5 {[%clk 0:02:39.1]} 9... Nxe4 {[%clk 0:02:49.4]}
10. Nxe4 {[%clk 0:02:38.7]} 10... dxe4 {[%clk 0:02:50.3]} 11. Nxc6 {[%clk
0:02:38.6]} 11... bxc6 {[%clk 0:02:51.2]} 12. Qxd8 {[%clk 0:02:37.2]} 12... Rxd8
{[%clk 0:02:34.4]} 13. Bg2 {[%clk 0:02:37.1]} 13... Rb8 {[%clk 0:02:27]} 14.
Bxe4 {[%clk 0:02:24.7]} 14... Rxb2 {[%clk 0:02:23.3]} 15. O-O {[%clk 0:02:22.9]}
15... a5 {[%clk 0:02:16.6]} 16. Rfb1 {[%clk 0:02:17]} 16... Bxa3 {[%clk
0:01:47.4]} 17. Rxb2 {[%clk 0:02:14]} 17... Bxb2 {[%clk 0:01:48.3]} 18. Rxa5
{[%clk 0:02:01.8]} 18... Bd7 {[%clk 0:01:37.4]} 19. Ra7 {[%clk 0:01:50.5]} 19...
Be8 {[%clk 0:01:32.1]} 20. h4 {[%clk 0:01:18.8]} 20... g6 {[%clk 0:01:24.2]} 21.
Kg2 {[%clk 0:01:17.1]} 21... Kg7 {[%clk 0:01:23.3]} 22. f4 {[%clk 0:01:11.2]}
22... Bd4 {[%clk 0:01:09.5]} 23. Kf3 {[%clk 0:01:11]} 23... Bxa7 {[%clk
0:01:09.3]} 24. Bxa7 {[%clk 0:01:10]} 24... Rd1 {[%clk 0:01:07.4]} 25. c3 {[%clk
0:01:09.3]} 25... Rh1 {[%clk 0:01:06.8]} 26. Bd4+ {[%clk 0:01:08.7]} 26... Kg8
{[%clk 0:01:06]} 27. Bf2 {[%clk 0:01:03.6]} 27... Rc1 {[%clk 0:01:04.8]} 28. Bd4
{[%clk 0:01:02.6]} 28... c5 {[%clk 0:01:04.2]} 29. Bf6 {[%clk 0:01:00.8]} 29...
Bb5 {[%clk 0:00:58.7]} 30. Kf2 {[%clk 0:00:50.9]} 30... Bc4 {[%clk 0:00:55.7]}
31. Kg3 {[%clk 0:00:36.5]} 31... Bd5 {[%clk 0:00:54.9]} 32. Bd3 {[%clk
0:00:36.4]} 32... Rg1+ {[%clk 0:00:47.4]} 33. Kf2 {[%clk 0:00:33.1]} 33... Rg4
{[%clk 0:00:42.9]} 34. Be5 {[%clk 0:00:25.9]} 34... c4 {[%clk 0:00:30.2]} 35.
Bf1 {[%clk 0:00:23.9]} 35... Rxh4 {[%clk 0:00:30.6]} 36. Kg3 {[%clk 0:00:21.3]}
36... Rh1 {[%clk 0:00:30.7]} 37. Kf2 {[%clk 0:00:19.2]} 37... h6 {[%clk
0:00:29.4]} 38. Bf6 {[%clk 0:00:17.6]} 38... h5 {[%clk 0:00:28.7]} 0-1

[Event "*** Titled Tuesday Blitz"]
[Site "Chess.com"]
[Date "2021.04.27"]
[Round "8"]
[White "Ajedrez_con_German"]
[Black "Agoking701"]
[Result "1-0"]
[WhiteElo "2528"]
[BlackElo "2284"]
[TimeControl "180+1"]
[EndTime "11:27:00 PDT"]
[Termination "Ajedrez_con_German won by resignation"]

1. d4 {[%clk 0:02:54.3]} 1... Nf6 {[%clk 0:02:54.2]} 2. Bg5 {[%clk 0:02:53.2]}
2... e6 {[%clk 0:02:50.3]} 3. e3 {[%clk 0:02:49.5]} 3... Be7 {[%clk 0:02:47.3]}
4. Bd3 {[%clk 0:02:46.7]} 4... c5 {[%clk 0:02:46.1]} 5. c3 {[%clk 0:02:46.4]}
5... b6 {[%clk 0:02:45.8]} 6. Nd2 {[%clk 0:02:39.1]} 6... Bb7 {[%clk 0:02:45.9]}
7. Ngf3 {[%clk 0:02:37.4]} 7... O-O {[%clk 0:02:46.2]} 8. O-O {[%clk 0:02:31.6]}
8... h6 {[%clk 0:02:46.3]} 9. Bxf6 {[%clk 0:02:30.1]} 9... Bxf6 {[%clk
0:02:46.3]} 10. Qe2 {[%clk 0:02:29]} 10... Nc6 {[%clk 0:02:45.2]} 11. Rad1
{[%clk 0:02:23.6]} 11... Rc8 {[%clk 0:02:45.4]} 12. Ba6 {[%clk 0:02:17.5]} 12...
Qc7 {[%clk 0:02:43.3]} 13. Ne4 {[%clk 0:02:07.6]} 13... Be7 {[%clk 0:02:36.2]}
14. Bxb7 {[%clk 0:02:03.1]} 14... Qxb7 {[%clk 0:02:37.1]} 15. dxc5 {[%clk
0:02:01.4]} 15... bxc5 {[%clk 0:02:36.2]} 16. Nd6 {[%clk 0:02:00.4]} 16... Bxd6
{[%clk 0:02:35.8]} 17. Rxd6 {[%clk 0:02:01.3]} 17... Rc7 {[%clk 0:02:31.5]} 18.
Rfd1 {[%clk 0:02:00.7]} 18... Rb8 {[%clk 0:02:08.7]} 19. b3 {[%clk 0:01:42.2]}
19... Ne7 {[%clk 0:02:01.1]} 20. e4 {[%clk 0:01:38.3]} 20... Nc8 {[%clk
0:01:57.4]} 21. R6d2 {[%clk 0:01:35.5]} 21... d6 {[%clk 0:01:57.8]} 22. c4
{[%clk 0:01:33.3]} 22... e5 {[%clk 0:01:48.9]} 23. Nh4 {[%clk 0:01:24.6]} 23...
g6 {[%clk 0:01:40.3]} 24. g3 {[%clk 0:01:15.5]} 24... Kh7 {[%clk 0:01:27.2]} 25.
Ng2 {[%clk 0:01:13.4]} 25... a5 {[%clk 0:01:25.7]} 26. h4 {[%clk 0:01:11.1]}
26... a4 {[%clk 0:01:24.4]} 27. Rd3 {[%clk 0:01:09]} 27... Qc6 {[%clk
0:01:12.5]} 28. h5 {[%clk 0:01:08.5]} 28... Rcb7 {[%clk 0:01:08.5]} 29. hxg6+
{[%clk 0:01:08.8]} 29... fxg6 {[%clk 0:01:09.4]} 30. Qe3 {[%clk 0:01:01.1]}
30... Rd7 {[%clk 0:00:54.6]} 31. Nh4 {[%clk 0:01:00.6]} 31... Ne7 {[%clk
0:00:51.7]} 32. Kg2 {[%clk 0:00:59.3]} 32... g5 {[%clk 0:00:46.1]} 33. Nf3
{[%clk 0:00:57.4]} 33... Kg6 {[%clk 0:00:45.6]} 34. Rh1 {[%clk 0:00:55.4]} 34...
Rg8 {[%clk 0:00:41.6]} 35. Qe2 {[%clk 0:00:43.5]} 35... Rh8 {[%clk 0:00:28.7]}
36. Nxg5 {[%clk 0:00:29.4]} 36... Kxg5 {[%clk 0:00:21]} 37. Qh5+ {[%clk
0:00:28.2]} 37... Kf6 {[%clk 0:00:19.5]} 38. Rf3+ {[%clk 0:00:27.6]} 1-0

[Event "*** Titled Tuesday Blitz"]
[Site "Chess.com"]
[Date "2021.04.27"]
[Round "8"]
[White "dropstoneDP"]
[Black "OK97"]
[Result "0-1"]
[WhiteElo "2899"]
[BlackElo "2756"]
[TimeControl "180+1"]
[EndTime "11:27:01 PDT"]
[Termination "OK97 won by resignation"]

1. d4 {[%clk 0:03:00.9]} 1... g6 {[%clk 0:02:59.8]} 2. e4 {[%clk 0:03:00.8]}
2... Bg7 {[%clk 0:03:00]} 3. Nf3 {[%clk 0:03:01.5]} 3... d6 {[%clk 0:02:59.5]}
4. Be3 {[%clk 0:02:58.6]} 4... Nf6 {[%clk 0:02:59]} 5. Nc3 {[%clk 0:02:58.9]}
5... a6 {[%clk 0:02:58.9]} 6. Qd2 {[%clk 0:02:56.1]} 6... O-O {[%clk 0:02:58.6]}
7. Bh6 {[%clk 0:02:55]} 7... c5 {[%clk 0:02:58.3]} 8. Bxg7 {[%clk 0:02:53.7]}
8... Kxg7 {[%clk 0:02:59.2]} 9. dxc5 {[%clk 0:02:49.7]} 9... dxc5 {[%clk
0:03:00.1]} 10. O-O-O {[%clk 0:02:48.6]} 10... Nc6 {[%clk 0:02:53.6]} 11. Qe3
{[%clk 0:02:45.6]} 11... Qa5 {[%clk 0:02:53.2]} 12. h3 {[%clk 0:02:38.6]} 12...
Be6 {[%clk 0:02:46.4]} 13. e5 {[%clk 0:02:15.4]} 13... Nd5 {[%clk 0:02:46.5]}
14. Nxd5 {[%clk 0:01:34.4]} 14... Bxd5 {[%clk 0:02:46.5]} 15. a3 {[%clk
0:01:11.9]} 15... Bxf3 {[%clk 0:02:34]} 16. gxf3 {[%clk 0:01:07.7]} 16... Rfd8
{[%clk 0:02:22.8]} 17. Be2 {[%clk 0:01:01.2]} 17... Nd4 {[%clk 0:02:13.5]} 18.
c3 {[%clk 0:00:54.7]} 18... Nxe2+ {[%clk 0:01:53.7]} 19. Qxe2 {[%clk 0:00:53.7]}
19... Qa4 {[%clk 0:01:51.4]} 20. Qe3 {[%clk 0:00:41.5]} 20... Qc4 {[%clk
0:01:46.3]} 21. f4 {[%clk 0:00:33.9]} 21... e6 {[%clk 0:01:24.9]} 22. Kc2 {[%clk
0:00:23.1]} 22... Qa4+ {[%clk 0:01:17.7]} 23. b3 {[%clk 0:00:22.4]} 23... Qc6
{[%clk 0:01:16.3]} 24. Rhe1 {[%clk 0:00:14]} 24... c4 {[%clk 0:01:12.6]} 25. Rd4
{[%clk 0:00:03.5]} 25... cxb3+ {[%clk 0:01:11.4]} 26. Kxb3 {[%clk 0:00:03.5]}
26... Rxd4 {[%clk 0:01:03.8]} 27. Qxd4 {[%clk 0:00:04.4]} 27... Rc8 {[%clk
0:01:02.8]} 28. a4 {[%clk 0:00:04.2]} 28... b5 {[%clk 0:00:59.4]} 29. a5 {[%clk
0:00:02]} 29... Qf3 {[%clk 0:00:53]} 30. Re3 {[%clk 0:00:01.7]} 30... Qxf2
{[%clk 0:00:51.6]} 31. Rd3 {[%clk 0:00:02.3]} 31... Qf1 {[%clk 0:00:48.8]} 32.
Kb2 {[%clk 0:00:02.7]} 32... Rc4 {[%clk 0:00:46.8]} 33. Qd8 {[%clk 0:00:02.8]}
33... Rxf4 {[%clk 0:00:44.1]} 34. Rd2 {[%clk 0:00:03.3]} 34... b4 {[%clk
0:00:41.8]} 35. Qc7 {[%clk 0:00:02.4]} 35... bxc3+ {[%clk 0:00:36.3]} 36. Qxc3
{[%clk 0:00:03.3]} 36... Qb5+ {[%clk 0:00:36.3]} 37. Ka1 {[%clk 0:00:02.1]}
37... Ra4+ {[%clk 0:00:35]} 38. Ra2 {[%clk 0:00:02.6]} 38... Qf1+ {[%clk
0:00:35.1]} 0-1

[Event "*** Titled Tuesday Blitz"]
[Site "Chess.com"]
[Date "2021.04.27"]
[Round "8"]
[White "Shuvalov"]
[Black "GoValya"]
[Result "1-0"]
[WhiteElo "2430"]
[BlackElo "2253"]
[TimeControl "180+1"]
[EndTime "11:27:04 PDT"]
[Termination "Shuvalov won by resignation"]

1. Nf3 {[%clk 0:02:48.5]} 1... Nf6 {[%clk 0:02:58.6]} 2. c4 {[%clk 0:02:48.3]}
2... c5 {[%clk 0:02:58.3]} 3. g3 {[%clk 0:02:48.2]} 3... g6 {[%clk 0:02:58.1]}
4. Bg2 {[%clk 0:02:48.5]} 4... Bg7 {[%clk 0:02:58.3]} 5. O-O {[%clk 0:02:49]}
5... Nc6 {[%clk 0:02:57.6]} 6. Nc3 {[%clk 0:02:48]} 6... O-O {[%clk 0:02:57.8]}
7. d4 {[%clk 0:02:48.2]} 7... cxd4 {[%clk 0:02:57.6]} 8. Nxd4 {[%clk 0:02:49.1]}
8... a6 {[%clk 0:02:56.9]} 9. Bf4 {[%clk 0:02:47.7]} 9... Qa5 {[%clk 0:02:47.8]}
10. Nb3 {[%clk 0:02:43.4]} 10... Qd8 {[%clk 0:02:22.5]} 11. Rc1 {[%clk
0:02:36.1]} 11... d6 {[%clk 0:02:16.9]} 12. Qd2 {[%clk 0:02:35]} 12... Be6
{[%clk 0:02:01.8]} 13. c5 {[%clk 0:02:24.8]} 13... d5 {[%clk 0:01:58.1]} 14.
Rfd1 {[%clk 0:02:21.7]} 14... Rc8 {[%clk 0:01:38.9]} 15. Qe1 {[%clk 0:02:19.4]}
15... h6 {[%clk 0:01:20.8]} 16. e4 {[%clk 0:02:13.7]} 16... d4 {[%clk
0:01:18.8]} 17. Ne2 {[%clk 0:01:38.3]} 17... Bxb3 {[%clk 0:01:12.9]} 18. axb3
{[%clk 0:01:39.2]} 18... e5 {[%clk 0:01:12.5]} 19. Bd2 {[%clk 0:01:37.4]} 19...
Qe7 {[%clk 0:00:42]} 20. Rc4 {[%clk 0:01:35.3]} 20... Rfd8 {[%clk 0:00:37.1]}
21. Nc1 {[%clk 0:01:35.2]} 21... d3 {[%clk 0:00:34.1]} 22. Bf1 {[%clk
0:01:30.7]} 22... Nd4 {[%clk 0:00:30.2]} 23. Kg2 {[%clk 0:01:16.8]} 23... Rxc5
{[%clk 0:00:27.8]} 24. Nxd3 {[%clk 0:01:14.6]} 24... Rcc8 {[%clk 0:00:24.4]} 25.
Bb4 {[%clk 0:01:11.7]} 25... Qe6 {[%clk 0:00:22]} 26. f3 {[%clk 0:01:07.4]}
26... b5 {[%clk 0:00:19.9]} 27. Rc5 {[%clk 0:01:04.2]} 27... Nxb3 {[%clk
0:00:18.5]} 28. Rxe5 {[%clk 0:00:58.9]} 28... Qb6 {[%clk 0:00:18.1]} 29. Qf2
{[%clk 0:00:55.6]} 29... Ng4 {[%clk 0:00:15.5]} 30. Qxb6 {[%clk 0:00:55.2]}
30... Nxe5 {[%clk 0:00:14.7]} 31. Qxa6 {[%clk 0:00:50.2]} 31... Nxd3 {[%clk
0:00:13.6]} 32. Rxd3 {[%clk 0:00:51.1]} 32... Nd4 {[%clk 0:00:10.9]} 33. Bc3
{[%clk 0:00:46.9]} 33... b4 {[%clk 0:00:08.6]} 34. Bxd4 {[%clk 0:00:46.3]} 34...
Rc2+ {[%clk 0:00:08.3]} 35. Kg1 {[%clk 0:00:45.5]} 35... Bxd4+ {[%clk
0:00:07.9]} 36. Kh1 {[%clk 0:00:41.1]} 36... Rc1 {[%clk 0:00:05.7]} 37. Kg2
{[%clk 0:00:40.7]} 37... Rc2+ {[%clk 0:00:05.3]} 38. Kh3 {[%clk 0:00:40.9]}
38... Kg7 {[%clk 0:00:04.3]} 39. Qa5 {[%clk 0:00:37.9]} 39... h5 {[%clk
0:00:03.5]} 40. Qxd8 {[%clk 0:00:37.5]} 40... Bg1 {[%clk 0:00:02.9]} 41. Bg2
{[%clk 0:00:36.8]} 1-0

[Event "*** Titled Tuesday Blitz"]
[Site "Chess.com"]
[Date "2021.04.27"]
[Round "8"]
[White "sergiochess83"]
[Black "BahadirOzen"]
[Result "1-0"]
[WhiteElo "2878"]
[BlackElo "2667"]
[TimeControl "180+1"]
[EndTime "11:27:09 PDT"]
[Termination "sergiochess83 won by resignation"]

1. e4 {[%clk 0:03:00.9]} 1... g6 {[%clk 0:02:59.8]} 2. d4 {[%clk 0:03:00.6]}
2... d6 {[%clk 0:03:00.3]} 3. Nf3 {[%clk 0:03:01.1]} 3... Nf6 {[%clk 0:03:00.6]}
4. Bd3 {[%clk 0:02:54.3]} 4... Bg7 {[%clk 0:03:00.8]} 5. c3 {[%clk 0:02:54.9]}
5... O-O {[%clk 0:03:01.1]} 6. O-O {[%clk 0:02:55.4]} 6... Nbd7 {[%clk
0:03:01.2]} 7. e5 {[%clk 0:02:49.3]} 7... Nd5 {[%clk 0:02:44.7]} 8. Qe2 {[%clk
0:01:49.9]} 8... dxe5 {[%clk 0:02:21.4]} 9. Nxe5 {[%clk 0:01:49.8]} 9... Nxe5
{[%clk 0:02:03.3]} 10. dxe5 {[%clk 0:01:49.6]} 10... c6 {[%clk 0:02:03.9]} 11.
Re1 {[%clk 0:01:48.3]} 11... Qc7 {[%clk 0:01:53.9]} 12. g3 {[%clk 0:01:35.2]}
12... Be6 {[%clk 0:01:44.2]} 13. Nd2 {[%clk 0:01:35.2]} 13... Rad8 {[%clk
0:01:31.7]} 14. Bc2 {[%clk 0:01:27.4]} 14... Qc8 {[%clk 0:01:27.9]} 15. Ne4
{[%clk 0:01:14.2]} 15... Bg4 {[%clk 0:01:12.6]} 16. f3 {[%clk 0:01:13.9]} 16...
Bf5 {[%clk 0:01:12.8]} 17. f4 {[%clk 0:01:06.3]} 17... Rfe8 {[%clk 0:01:12.1]}
18. Bd2 {[%clk 0:00:52.4]} 18... f6 {[%clk 0:00:55]} 19. exf6 {[%clk 0:00:52.2]}
19... exf6 {[%clk 0:00:54.9]} 20. Qf3 {[%clk 0:00:48.5]} 20... Bg4 {[%clk
0:00:45.7]} 21. Qf2 {[%clk 0:00:46.1]} 21... Qb8 {[%clk 0:00:40.2]} 22. c4
{[%clk 0:00:34.5]} 22... Nb6 {[%clk 0:00:40.3]} 23. Bc3 {[%clk 0:00:34.1]} 23...
Rf8 {[%clk 0:00:36.2]} 24. b3 {[%clk 0:00:29.3]} 24... Nd7 {[%clk 0:00:30.8]}
25. Re3 {[%clk 0:00:20.5]} 25... Bf5 {[%clk 0:00:25.5]} 26. Rae1 {[%clk
0:00:20]} 26... Rfe8 {[%clk 0:00:22.1]} 27. Qg2 {[%clk 0:00:16.1]} 27... Bxe4
{[%clk 0:00:14.2]} 28. Rxe4 {[%clk 0:00:14.4]} 28... Rxe4 {[%clk 0:00:10.7]} 29.
Qxe4 {[%clk 0:00:15.3]} 29... Nf8 {[%clk 0:00:10.1]} 30. f5 {[%clk 0:00:13.6]}
30... Qd6 {[%clk 0:00:08.1]} 31. b4 {[%clk 0:00:11]} 31... Kh8 {[%clk
0:00:07.1]} 32. c5 {[%clk 0:00:10.6]} 32... Qd7 {[%clk 0:00:07.5]} 33. fxg6
{[%clk 0:00:10.1]} 33... hxg6 {[%clk 0:00:08.4]} 34. Qh4+ {[%clk 0:00:09.7]}
34... Kg8 {[%clk 0:00:08.7]} 35. Bb3+ {[%clk 0:00:09.9]} 1-0

[Event "*** Titled Tuesday Blitz"]
[Site "Chess.com"]
[Date "2021.04.27"]
[Round "8"]
[White "adriangschnitzer"]
[Black "fyall777"]
[Result "1-0"]
[WhiteElo "2509"]
[BlackElo "2406"]
[TimeControl "180+1"]
[EndTime "11:27:11 PDT"]
[Termination "adriangschnitzer won on time"]

1. e4 {[%clk 0:03:00.9]} 1... e5 {[%clk 0:02:57.8]} 2. Nf3 {[%clk 0:02:56.6]}
2... Nf6 {[%clk 0:02:57.7]} 3. Nxe5 {[%clk 0:02:55.2]} 3... d6 {[%clk
0:02:57.6]} 4. Nxf7 {[%clk 0:02:54.4]} 4... Kxf7 {[%clk 0:02:57.1]} 5. Nc3
{[%clk 0:02:52.6]} 5... c5 {[%clk 0:02:48.5]} 6. Bc4+ {[%clk 0:02:47.8]} 6...
Be6 {[%clk 0:02:46.9]} 7. Bxe6+ {[%clk 0:02:40.9]} 7... Kxe6 {[%clk 0:02:46.9]}
8. O-O {[%clk 0:02:41.8]} 8... Nc6 {[%clk 0:02:45.3]} 9. f4 {[%clk 0:02:37.8]}
9... Kd7 {[%clk 0:02:43.6]} 10. d4 {[%clk 0:01:31.8]} 10... cxd4 {[%clk
0:02:37.4]} 11. Nd5 {[%clk 0:01:20.2]} 11... Nxd5 {[%clk 0:02:35.9]} 12. exd5
{[%clk 0:01:21.1]} 12... Ne7 {[%clk 0:02:33]} 13. Qf3 {[%clk 0:01:06.8]} 13...
Qb6 {[%clk 0:02:28.6]} 14. c4 {[%clk 0:00:57]} 14... g6 {[%clk 0:02:14.5]} 15.
Kh1 {[%clk 0:00:48.5]} 15... Re8 {[%clk 0:02:08.3]} 16. Bd2 {[%clk 0:00:45.7]}
16... Nf5 {[%clk 0:02:06.5]} 17. b4 {[%clk 0:00:45.2]} 17... Bg7 {[%clk
0:02:04]} 18. Rac1 {[%clk 0:00:43.2]} 18... Qa6 {[%clk 0:01:52.1]} 19. c5 {[%clk
0:00:40.9]} 19... Kc8 {[%clk 0:01:18.5]} 20. cxd6+ {[%clk 0:00:30.1]} 20... Kb8
{[%clk 0:01:17.9]} 21. d7 {[%clk 0:00:25.2]} 21... Rd8 {[%clk 0:01:15.7]} 22. b5
{[%clk 0:00:22.8]} 22... Qd6 {[%clk 0:01:11.3]} 23. Rc6 {[%clk 0:00:17.4]} 23...
bxc6 {[%clk 0:01:07.6]} 24. bxc6 {[%clk 0:00:18.3]} 24... Ka8 {[%clk 0:00:47.2]}
25. Ba5 {[%clk 0:00:15.5]} 25... Ne3 {[%clk 0:00:36.6]} 26. Bxd8 {[%clk
0:00:05.9]} 26... Nxf1 {[%clk 0:00:33.3]} 27. Ba5 {[%clk 0:00:03.2]} 27... Ne3
{[%clk 0:00:07.6]} 28. c7 {[%clk 0:00:03.4]} 1-0

[Event "*** Titled Tuesday Blitz"]
[Site "Chess.com"]
[Date "2021.04.27"]
[Round "8"]
[White "GameOverBro"]
[Black "PavelShkapenko"]
[Result "0-1"]
[WhiteElo "2519"]
[BlackElo "2671"]
[TimeControl "180+1"]
[EndTime "11:27:12 PDT"]
[Termination "PavelShkapenko won by resignation"]

1. e4 {[%clk 0:03:00.9]} 1... e5 {[%clk 0:02:58.6]} 2. Nf3 {[%clk 0:03:00.5]}
2... Nc6 {[%clk 0:02:57.6]} 3. Bb5 {[%clk 0:03:00.3]} 3... Bc5 {[%clk
0:02:56.4]} 4. c3 {[%clk 0:02:58.3]} 4... f5 {[%clk 0:02:54.8]} 5. d4 {[%clk
0:02:39.8]} 5... fxe4 {[%clk 0:02:51]} 6. dxc5 {[%clk 0:02:39]} 6... exf3 {[%clk
0:02:51.2]} 7. Qxf3 {[%clk 0:02:37.6]} 7... Nf6 {[%clk 0:02:51.8]} 8. Bg5 {[%clk
0:02:26.4]} 8... O-O {[%clk 0:02:43.7]} 9. Nd2 {[%clk 0:02:25.4]} 9... Qe8
{[%clk 0:02:35.6]} 10. O-O-O {[%clk 0:02:23.5]} 10... Qg6 {[%clk 0:02:35.3]} 11.
h4 {[%clk 0:02:19.4]} 11... d6 {[%clk 0:02:19.1]} 12. Bd3 {[%clk 0:02:15.8]}
12... Qe8 {[%clk 0:02:09.5]} 13. Ne4 {[%clk 0:02:05.4]} 13... Nxe4 {[%clk
0:02:03.2]} 14. Qxe4 {[%clk 0:02:03.4]} 14... Bf5 {[%clk 0:02:03.6]} 15. Qd5+
{[%clk 0:01:40.5]} 15... Be6 {[%clk 0:02:03]} 16. Qe4 {[%clk 0:01:40.5]} 16...
Bf5 {[%clk 0:02:03.5]} 17. Qd5+ {[%clk 0:01:39.8]} 17... Kh8 {[%clk 0:01:49.7]}
18. Bxf5 {[%clk 0:01:38.4]} 18... Rxf5 {[%clk 0:01:49.4]} 19. cxd6 {[%clk
0:01:36.6]} 19... cxd6 {[%clk 0:01:50.2]} 20. Qxd6 {[%clk 0:01:26.6]} 20... Rxf2
{[%clk 0:01:46.9]} 21. Rhf1 {[%clk 0:01:25.5]} 21... Rxf1 {[%clk 0:01:46.6]} 22.
Rxf1 {[%clk 0:01:24.9]} 22... Rc8 {[%clk 0:01:38]} 23. g4 {[%clk 0:01:12.5]}
23... Qg8 {[%clk 0:01:36.4]} 24. Kb1 {[%clk 0:01:10.8]} 24... h6 {[%clk
0:01:33.2]} 25. Bxh6 {[%clk 0:01:04.4]} 25... Qh7+ {[%clk 0:01:21.2]} 26. Ka1
{[%clk 0:00:54.5]} 26... Qxh6 {[%clk 0:01:21.1]} 27. Rf8+ {[%clk 0:00:47.2]}
27... Rxf8 {[%clk 0:01:18.4]} 28. Qxf8+ {[%clk 0:00:48.1]} 28... Kh7 {[%clk
0:01:18.9]} 29. a4 {[%clk 0:00:41.4]} 29... Qf4 {[%clk 0:01:11.9]} 30. Qc8
{[%clk 0:00:27]} 30... Qxa4+ {[%clk 0:01:06.9]} 31. Kb1 {[%clk 0:00:26.9]} 31...
Qe4+ {[%clk 0:01:07]} 32. Ka2 {[%clk 0:00:27]} 32... Qa4+ {[%clk 0:00:58]} 33.
Kb1 {[%clk 0:00:27.1]} 33... Qd1+ {[%clk 0:00:58.5]} 34. Ka2 {[%clk 0:00:27.4]}
34... Qd5+ {[%clk 0:00:59]} 35. Kb1 {[%clk 0:00:27.5]} 35... e4 {[%clk
0:00:59.1]} 36. h5 {[%clk 0:00:21.7]} 36... e3 {[%clk 0:00:58]} 37. Qe8 {[%clk
0:00:21.5]} 37... Qd3+ {[%clk 0:00:56.2]} 38. Ka1 {[%clk 0:00:20]} 38... Qd1+
{[%clk 0:00:48.1]} 39. Ka2 {[%clk 0:00:20.1]} 39... Qxg4 {[%clk 0:00:44.7]} 40.
Qxe3 {[%clk 0:00:18.3]} 40... Qxh5 {[%clk 0:00:41.8]} 41. b4 {[%clk 0:00:17.6]}
41... Qd5+ {[%clk 0:00:39.8]} 42. Ka3 {[%clk 0:00:17]} 42... g5 {[%clk
0:00:37.3]} 43. Qh3+ {[%clk 0:00:15.8]} 43... Kg6 {[%clk 0:00:36.7]} 44. Qg4
{[%clk 0:00:16]} 44... Ne5 {[%clk 0:00:35.9]} 45. Qc8 {[%clk 0:00:15.3]} 45...
Nc4+ {[%clk 0:00:26.7]} 0-1

[Event "*** Titled Tuesday Blitz"]
[Site "Chess.com"]
[Date "2021.04.27"]
[Round "8"]
[White "chessbia"]
[Black "RafalBRC"]
[Result "1-0"]
[WhiteElo "2335"]
[BlackElo "2177"]
[TimeControl "180+1"]
[EndTime "11:27:17 PDT"]
[Termination "chessbia won by resignation"]

1. d4 {[%clk 0:03:00.9]} 1... Nf6 {[%clk 0:02:58.8]} 2. c4 {[%clk 0:03:00]} 2...
e6 {[%clk 0:02:58.2]} 3. Nc3 {[%clk 0:03:00.1]} 3... Bb4 {[%clk 0:02:58.1]} 4.
Qc2 {[%clk 0:03:00]} 4... O-O {[%clk 0:02:56.3]} 5. Nf3 {[%clk 0:02:59.7]} 5...
d5 {[%clk 0:02:55.6]} 6. cxd5 {[%clk 0:02:59.9]} 6... exd5 {[%clk 0:02:55.2]} 7.
Bf4 {[%clk 0:03:00.4]} 7... c5 {[%clk 0:02:54.8]} 8. dxc5 {[%clk 0:02:58.9]}
8... Nc6 {[%clk 0:02:52]} 9. e3 {[%clk 0:02:57.3]} 9... d4 {[%clk 0:02:50.8]}
10. O-O-O {[%clk 0:02:53.5]} 10... Bg4 {[%clk 0:02:23.1]} 11. Bd6 {[%clk
0:02:39]} 11... Re8 {[%clk 0:02:20.8]} 12. exd4 {[%clk 0:02:31.3]} 12... Bxc3
{[%clk 0:02:17.1]} 13. bxc3 {[%clk 0:02:20.7]} 13... Ne4 {[%clk 0:02:11.3]} 14.
Bg3 {[%clk 0:02:16.6]} 14... Qa5 {[%clk 0:02:07.7]} 15. Rd3 {[%clk 0:02:01.5]}
15... Bf5 {[%clk 0:01:17.6]} 16. Qb3 {[%clk 0:01:12.4]} 16... b6 {[%clk
0:00:57]} 17. cxb6 {[%clk 0:00:34.1]} 17... axb6 {[%clk 0:00:56.7]} 18. Kb2
{[%clk 0:00:28.6]} 18... b5 {[%clk 0:00:42.6]} 19. Re3 {[%clk 0:00:24.4]} 19...
b4 {[%clk 0:00:40.3]} 20. c4 {[%clk 0:00:20.8]} 20... Qb6 {[%clk 0:00:34.3]} 21.
c5 {[%clk 0:00:19.5]} 21... Qd8 {[%clk 0:00:32.6]} 22. Bc4 {[%clk 0:00:18.4]}
22... Nxd4 {[%clk 0:00:28.1]} 23. Bxf7+ {[%clk 0:00:18]} 23... Kh8 {[%clk
0:00:28.3]} 24. Qd5 {[%clk 0:00:12.4]} 24... Qxd5 {[%clk 0:00:09.1]} 25. Bxd5
{[%clk 0:00:13.3]} 25... Nxg3 {[%clk 0:00:06.9]} 26. hxg3 {[%clk 0:00:12.5]}
26... Rxe3 {[%clk 0:00:06.8]} 27. fxe3 {[%clk 0:00:12.4]} 27... Rd8 {[%clk
0:00:07.4]} 28. e4 {[%clk 0:00:11.6]} 28... Bxe4 {[%clk 0:00:04.4]} 29. Bxe4
{[%clk 0:00:10.8]} 29... Ne2 {[%clk 0:00:04]} 30. Rxh7+ {[%clk 0:00:10.3]} 30...
Kg8 {[%clk 0:00:03.5]} 31. Rh4 {[%clk 0:00:10.2]} 31... Nxg3 {[%clk 0:00:03.6]}
32. c6 {[%clk 0:00:09.3]} 32... Nxe4 {[%clk 0:00:03.5]} 33. Rxe4 {[%clk
0:00:10.2]} 33... Rc8 {[%clk 0:00:04.2]} 34. Rc4 {[%clk 0:00:10.5]} 34... Kf7
{[%clk 0:00:04]} 35. Kb3 {[%clk 0:00:11.1]} 35... Ke6 {[%clk 0:00:04.7]} 36.
Kxb4 {[%clk 0:00:12]} 36... Kd6 {[%clk 0:00:05.4]} 37. Nd4 {[%clk 0:00:11.9]}
37... Rxc6 {[%clk 0:00:06.3]} 38. Rxc6+ {[%clk 0:00:12]} 1-0